fUSD/lending_fUSD_20260529
["ID","MTS","AMOUNT","RATE_DAILY","PERIOD"]
[423304916,1780044382000,-500.0,0.00039572,120]
[423304914,1780044382000,-500.0,0.00039572,120]
[423304918,1780044382000,-500.0,0.00039572,120]
[423304932,1780044383000,-500.0,0.00039572,120]
[423304923,1780044383000,-554.92626162,0.00039572,120]
[423304925,1780044383000,-500.0,0.00039572,120]
[423304924,1780044383000,-500.0,0.00039572,120]
[423304927,1780044383000,-500.0,0.00039572,120]
[423304926,1780044383000,-262.32617383,0.00039572,120]
[423304929,1780044383000,-500.0,0.00039572,120]
[423304928,1780044383000,-467.95411906,0.00039572,120]
[423304930,1780044383000,-516.06668233,0.00039572,120]
[423304931,1780044383000,-500.0,0.00039572,120]
[423304944,1780044383000,-500.0,0.00039572,120]
[423304934,1780044383000,-500.0,0.00039572,120]
[423304936,1780044383000,-323.75359149,0.00039572,120]
[423304935,1780044383000,-583.58,0.00039572,120]
[423304938,1780044383000,-500.0,0.00039572,120]
[423304937,1780044383000,-500.0,0.00039572,120]
[423304940,1780044383000,-500.0,0.00039572,120]
[423304939,1780044383000,-588.2310421,0.00039572,120]
[423304941,1780044383000,-500.0,0.00039572,120]
[423304943,1780044383000,-543.79972246,0.00039572,120]
[423304942,1780044383000,-500.0,0.00039572,120]
[423304933,1780044383000,-500.0,0.00039572,120]
[423304953,1780044384000,-369.30265803,0.00039572,120]
[423304950,1780044384000,-500.0,0.00039572,120]
[423304951,1780044384000,-500.0,0.00039572,120]
[423304948,1780044384000,-500.0,0.00039572,120]
[423304952,1780044384000,-500.0,0.00039572,120]
[423304946,1780044384000,-500.0,0.00039572,120]
[423304947,1780044384000,-500.0,0.00039572,120]
[423304945,1780044384000,-500.0,0.00039572,120]
[423304949,1780044384000,-500.0,0.00039572,120]
[423304954,1780044384000,-500.0,0.00039572,120]
[423304964,1780044384000,-500.0,0.00039572,120]
[423304955,1780044384000,-500.0,0.00039572,120]
[423304956,1780044384000,-500.0,0.00039572,120]
[423304965,1780044384000,-500.0,0.00039572,120]
[423304963,1780044384000,-500.0,0.00039572,120]
[423304961,1780044384000,-568.06866488,0.00039572,120]
[423304966,1780044384000,-500.0,0.00039572,120]
[423304960,1780044384000,-500.0,0.00039572,120]
[423304959,1780044384000,-500.0,0.00039572,120]
[423304957,1780044384000,-500.0,0.00039572,120]
[423304958,1780044384000,-500.0,0.00039572,120]
[423304962,1780044384000,-500.0,0.00039572,120]
[423304974,1780044385000,-500.0,0.00039572,120]
[423304967,1780044385000,-500.0,0.00039572,120]
[423304969,1780044385000,-500.0,0.00039572,120]
[423304968,1780044385000,-500.0,0.00039572,120]
[423304971,1780044385000,-500.0,0.00039572,120]
[423304970,1780044385000,-500.0,0.00039572,120]
[423304973,1780044385000,-500.0,0.00039572,120]
[423304972,1780044385000,-500.0,0.00039572,120]
[423304975,1780044385000,-500.0,0.00039572,120]
[423304977,1780044385000,-500.0,0.00039572,120]
[423304976,1780044385000,-205.25845046,0.00039572,120]
[423304978,1780044385000,-649.86814637,0.00039572,120]
[423304979,1780044385000,-517.12003445,0.00039572,120]
[423304980,1780044385000,-500.0,0.00039572,120]
[423304982,1780044385000,-500.0,0.00039572,120]
[423304981,1780044385000,-500.0,0.00039572,120]
[423304984,1780044385000,-500.0,0.00039572,120]
[423304983,1780044385000,-500.0,0.00039572,120]
[423304985,1780044385000,-636.03176328,0.00039572,120]
[423304993,1780044386000,-220.57,0.00039572,120]
[423304992,1780044386000,-500.0,0.00039572,120]
[423304991,1780044386000,-500.0,0.00039572,120]
[423304990,1780044386000,-500.0,0.00039572,120]
[423304986,1780044386000,-500.0,0.00039572,120]
[423304989,1780044386000,-500.0,0.00039572,120]
[423304987,1780044386000,-500.0,0.00039572,120]
[423304996,1780044386000,-500.0,0.00039572,120]
[423304988,1780044386000,-500.0,0.00039572,120]
[423304994,1780044386000,-500.0,0.00039572,120]
[423305005,1780044386000,-500.0,0.00039572,120]
[423304997,1780044386000,-500.0,0.00039572,120]
[423304995,1780044386000,-500.0,0.00039572,120]
[423305006,1780044386000,-587.20389121,0.00039572,120]
[423305004,1780044386000,-500.0,0.00039572,120]
[423305003,1780044386000,-304.99383918,0.00039572,120]
[423305007,1780044386000,-500.0,0.00039572,120]
[423305001,1780044386000,-500.0,0.00039572,120]
[423305000,1780044386000,-500.0,0.00039572,120]
[423304999,1780044386000,-500.0,0.00039572,120]
[423304998,1780044386000,-500.0,0.00039572,120]
[423305002,1780044386000,-500.0,0.00039572,120]
[423305018,1780044387000,-500.0,0.00039572,120]
[423305009,1780044387000,-500.0,0.00039572,120]
[423305008,1780044387000,-500.0,0.00039572,120]
[423305010,1780044387000,-410.88,0.00039572,120]
[423305011,1780044387000,-500.0,0.00039572,120]
[423305012,1780044387000,-500.0,0.00039572,120]
[423305013,1780044387000,-500.0,0.00039572,120]
[423305014,1780044387000,-211.63347853,0.00039572,120]
[423305015,1780044387000,-500.0,0.00039572,120]
[423305016,1780044387000,-500.0,0.00039572,120]
[423305017,1780044387000,-537.82,0.00039572,120]
[423305025,1780044387000,-500.0,0.00039572,120]
[423305020,1780044387000,-500.0,0.00039572,120]
[423305019,1780044387000,-500.0,0.00039572,120]
[423305029,1780044387000,-500.0,0.00039572,120]
[423305027,1780044387000,-500.0,0.00039572,120]
[423305026,1780044387000,-152.94,0.00039572,120]
[423305028,1780044387000,-500.0,0.00039572,120]
[423305030,1780044387000,-500.0,0.00039572,120]
[423305023,1780044387000,-234.86576836,0.00039572,120]
[423305022,1780044387000,-500.0,0.00039572,120]
[423305021,1780044387000,-500.0,0.00039572,120]
[423305024,1780044387000,-500.0,0.00039572,120]
[423305034,1780044388000,-500.0,0.00039572,120]
[423305031,1780044388000,-500.0,0.00039572,120]
[423305032,1780044388000,-500.0,0.00039572,120]
[423305033,1780044388000,-500.0,0.00039572,120]
[423305035,1780044388000,-500.0,0.00039572,120]
[423305037,1780044388000,-500.0,0.00039572,120]
[423305038,1780044388000,-500.0,0.00039572,120]
[423305039,1780044388000,-533.89141884,0.00039572,120]
[423305040,1780044388000,-500.0,0.00039572,120]
[423305042,1780044388000,-500.0,0.00039572,120]
[423305041,1780044388000,-500.0,0.00039572,120]
[423305043,1780044388000,-500.0,0.00039572,120]
[423305044,1780044388000,-500.0,0.00039572,120]
[423305036,1780044388000,-500.0,0.00039572,120]
[423305051,1780044389000,-500.0,0.00039572,120]
[423305045,1780044389000,-500.0,0.00039572,120]
[423305046,1780044389000,-500.0,0.00039572,120]
[423305047,1780044389000,-397.24905644,0.00039572,120]
[423305048,1780044389000,-500.0,0.00039572,120]
[423305050,1780044389000,-500.0,0.00039572,120]
[423305049,1780044389000,-500.0,0.00039572,120]
[423305052,1780044389000,-500.0,0.00039572,120]
[423305062,1780044389000,-500.0,0.00039572,120]
[423305053,1780044389000,-500.0,0.00039572,120]
[423305056,1780044389000,-500.0,0.00039572,120]
[423305055,1780044389000,-500.0,0.00039572,120]
[423305058,1780044389000,-500.0,0.00039572,120]
[423305057,1780044389000,-500.0,0.00039572,120]
[423305060,1780044389000,-500.0,0.00039572,120]
[423305059,1780044389000,-500.0,0.00039572,120]
[423305061,1780044389000,-535.37753072,0.00039572,120]
[423305054,1780044389000,-500.0,0.00039572,120]
[423305068,1780044390000,-500.0,0.00039572,120]
[423305069,1780044390000,-525.82,0.00039572,120]
[423305067,1780044390000,-525.82,0.00039572,120]
[423305064,1780044390000,-572.24172108,0.00039572,120]
[423305071,1780044390000,-525.82,0.00039572,120]
[423305065,1780044390000,-500.0,0.00039572,120]
[423305063,1780044390000,-500.0,0.00039572,120]
[423305066,1780044390000,-500.0,0.00039572,120]
[423305070,1780044390000,-500.0,0.00039572,120]
[423305079,1780044390000,-500.0,0.00039572,120]
[423305073,1780044390000,-408.94,0.00039572,120]
[423305080,1780044390000,-525.82,0.00039572,120]
[423305082,1780044390000,-500.0,0.00039572,120]
[423305081,1780044390000,-500.0,0.00039572,120]
[423305078,1780044390000,-500.0,0.00039572,120]
[423305072,1780044390000,-500.0,0.00039572,120]
[423305077,1780044390000,-500.0,0.00039572,120]
[423305075,1780044390000,-500.0,0.00039572,120]
[423305074,1780044390000,-525.82,0.00039572,120]
[423305076,1780044390000,-525.82,0.00039572,120]
[423305090,1780044391000,-279.2289834,0.00039572,120]
[423305084,1780044391000,-500.0,0.00039572,120]
[423305083,1780044391000,-500.0,0.00039572,120]
[423305085,1780044391000,-525.82,0.00039572,120]
[423305086,1780044391000,-500.0,0.00039572,120]
[423305087,1780044391000,-613.89399959,0.00039572,120]
[423305089,1780044391000,-500.0,0.00039572,120]
[423305088,1780044391000,-500.0,0.00039572,120]
[423305091,1780044391000,-525.82,0.00039572,120]
[423305092,1780044391000,-500.0,0.00039572,120]
[423305093,1780044391000,-532.98321275,0.00039572,120]
[423305101,1780044391000,-525.82,0.00039572,120]
[423305100,1780044391000,-500.0,0.00039572,120]
[423305099,1780044391000,-525.82,0.00039572,120]
[423305098,1780044391000,-500.0,0.00039572,120]
[423305102,1780044391000,-500.0,0.00039572,120]
[423305096,1780044391000,-525.82,0.00039572,120]
[423305095,1780044391000,-500.0,0.00039572,120]
[423305094,1780044391000,-500.0,0.00039572,120]
[423305097,1780044391000,-162.78540734,0.00039572,120]
[423305110,1780044392000,-500.0,0.00039572,120]
[423305103,1780044392000,-525.82,0.00039572,120]
[423305104,1780044392000,-500.0,0.00039572,120]
[423305105,1780044392000,-500.0,0.00039572,120]
[423305106,1780044392000,-525.82,0.00039572,120]
[423305108,1780044392000,-500.0,0.00039572,120]
[423305107,1780044392000,-500.0,0.00039572,120]
[423305109,1780044392000,-525.82,0.00039572,120]
[423305111,1780044392000,-525.82,0.00039572,120]
[423305121,1780044392000,-500.0,0.00039572,120]
[423305113,1780044392000,-500.0,0.00039572,120]
[423305114,1780044392000,-500.0,0.00039572,120]
[423305115,1780044392000,-525.82,0.00039572,120]
[423305116,1780044392000,-500.0,0.00039572,120]
[423305117,1780044392000,-191.76938167,0.00039572,120]
[423305118,1780044392000,-500.0,0.00039572,120]
[423305119,1780044392000,-525.82,0.00039572,120]
[423305120,1780044392000,-567.25,0.00039572,120]
[423305122,1780044392000,-525.82,0.00039572,120]
[423305112,1780044392000,-500.0,0.00039572,120]
[423305129,1780044393000,-500.0,0.00039572,120]
[423305128,1780044393000,-525.82,0.00039572,120]
[423305127,1780044393000,-500.0,0.00039572,120]
[423305123,1780044393000,-500.0,0.00039572,120]
[423305125,1780044393000,-525.82,0.00039572,120]
[423305124,1780044393000,-500.0,0.00039572,120]
[423305130,1780044393000,-500.0,0.00039572,120]
[423305126,1780044393000,-500.0,0.00039572,120]
[423305131,1780044393000,-500.0,0.00039572,120]
[423305142,1780044393000,-500.0,0.00039572,120]
[423305133,1780044393000,-535.51636434,0.00039572,120]
[423305141,1780044393000,-525.95336232,0.00039572,120]
[423305140,1780044393000,-500.0,0.00039572,120]
[423305139,1780044393000,-500.0,0.00039572,120]
[423305138,1780044393000,-525.82,0.00039572,120]
[423305132,1780044393000,-525.82,0.00039572,120]
[423305136,1780044393000,-525.82,0.00039572,120]
[423305135,1780044393000,-500.0,0.00039572,120]
[423305134,1780044393000,-500.0,0.00039572,120]
[423305137,1780044393000,-500.0,0.00039572,120]
[423305152,1780044394000,-500.0,0.00039572,120]
[423305144,1780044394000,-500.0,0.00039572,120]
[423305145,1780044394000,-500.0,0.00039572,120]
[423305147,1780044394000,-500.0,0.00039572,120]
[423305146,1780044394000,-500.0,0.00039572,120]
[423305149,1780044394000,-500.0,0.00039572,120]
[423305148,1780044394000,-500.0,0.00039572,120]
[423305150,1780044394000,-500.0,0.00039572,120]
[423305151,1780044394000,-500.0,0.00039572,120]
[423305143,1780044394000,-500.0,0.00039572,120]
[423305153,1780044394000,-500.0,0.00039572,120]
[423305154,1780044394000,-500.0,0.00039572,120]
[423305158,1780044394000,-188.89958517,0.00039572,120]
[423305156,1780044394000,-500.0,0.00039572,120]
[423305157,1780044394000,-500.0,0.00039572,120]
[423305159,1780044394000,-500.0,0.00039572,120]
[423305160,1780044394000,-500.0,0.00039572,120]
[423305162,1780044394000,-500.0,0.00039572,120]
[423305161,1780044394000,-500.0,0.00039572,120]
[423305163,1780044394000,-781.96,0.00039572,120]
[423305164,1780044394000,-500.0,0.00039572,120]
[423305155,1780044394000,-500.0,0.00039572,120]
[423305172,1780044395000,-500.0,0.00039572,120]
[423305171,1780044395000,-781.96,0.00039572,120]
[423305170,1780044395000,-500.0,0.00039572,120]
[423305169,1780044395000,-781.96,0.00039572,120]
[423305173,1780044395000,-500.0,0.00039572,120]
[423305168,1780044395000,-579.71246796,0.00039572,120]
[423305166,1780044395000,-781.96,0.00039572,120]
[423305165,1780044395000,-500.0,0.00039572,120]
[423305167,1780044395000,-500.0,0.00039572,120]
[423305175,1780044395000,-500.0,0.00039572,120]
[423305180,1780044395000,-781.96,0.00039572,120]
[423305176,1780044395000,-500.0,0.00039572,120]
[423305177,1780044395000,-781.96,0.00039572,120]
[423305179,1780044395000,-500.0,0.00039572,120]
[423305178,1780044395000,-500.0,0.00039572,120]
[423305181,1780044395000,-500.0,0.00039572,120]
[423305185,1780044395000,-500.0,0.00039572,120]
[423305182,1780044395000,-500.0,0.00039572,120]
[423305183,1780044395000,-781.96,0.00039572,120]
[423305184,1780044395000,-500.0,0.00039572,120]
[423305186,1780044395000,-500.0,0.00039572,120]
[423305174,1780044395000,-781.96,0.00039572,120]
[423305187,1780044396000,-781.96,0.00039572,120]
[423305188,1780044396000,-500.0,0.00039572,120]
[423305189,1780044396000,-500.0,0.00039572,120]
[423305192,1780044396000,-319.85711149,0.00039572,120]
[423305190,1780044396000,-781.96,0.00039572,120]
[423305193,1780044396000,-781.96,0.00039572,120]
[423305194,1780044396000,-781.96,0.00039572,120]
[423305196,1780044396000,-640.64967713,0.00039572,120]
[423305195,1780044396000,-500.0,0.00039572,120]
[423305191,1780044396000,-500.0,0.00039572,120]
[423305198,1780044472000,166.87,9.518e-05,2]
[423305197,1780044472000,166.87,9.042e-05,2]
[423305200,1780044472000,166.87,0.00010469,2]
[423305201,1780044472000,166.87,0.00010945,2]
[423305199,1780044472000,166.87,9.994e-05,2]
[423305205,1780044473000,-156.0000861,0.00012358,2]
[423305203,1780044473000,-166.87,0.00011897,2]
[423305204,1780044473000,-183.98319049,0.00011935,2]
[423305202,1780044473000,-166.87,0.00011421,2]
[423305206,1780044482000,3100.0,0.000119,4]
[423305207,1780044518000,270.66,0.00011667,2]
[423305208,1780044632000,-9711.81931738,0.00012258,2]
[423305209,1780044632000,-728.72845236,0.00012297,2]
[423305211,1780044632000,-91146.06086872,0.00012307,2]
[423305212,1780044632000,-410.00000001,0.00012307,2]
[423305210,1780044632000,-21142.14869156,0.00012307,2]
[423305295,1780044638000,-536.37325268,0.00012647,2]
[423305296,1780044638000,-536.37325268,0.00012647,2]
[423305293,1780044638000,-536.37325268,0.00012647,2]
[423305297,1780044638000,-536.37325268,0.00012647,2]
[423305294,1780044638000,-536.37325268,0.00012647,2]
[423305292,1780044638000,-536.37325268,0.00012647,2]
[423305284,1780044638000,-242.91469218,0.00012647,2]
[423305289,1780044638000,-536.37325268,0.00012647,2]
[423305288,1780044638000,-536.37325268,0.00012647,2]
[423305287,1780044638000,-536.37325268,0.00012647,2]
[423305286,1780044638000,-536.37325268,0.00012647,2]
[423305285,1780044638000,-536.37325268,0.00012647,2]
[423305282,1780044638000,-378.48173401,0.00012647,2]
[423305283,1780044638000,-536.37325268,0.00012647,2]
[423305298,1780044638000,-536.37325268,0.00012647,2]
[423305291,1780044638000,-536.37325268,0.00012647,2]
[423305280,1780044638000,-11500.77660661,0.0001264,2]
[423305278,1780044638000,-17522.0,0.0001263,2]
[423305299,1780044638000,-536.37325268,0.00012647,2]
[423305266,1780044638000,-1376316.37631919,0.00012307,2]
[423305267,1780044638000,-750.0,0.00012307,2]
[423305268,1780044638000,-10235.41412052,0.00012307,2]
[423305270,1780044638000,-11500.77660667,0.00012358,2]
[423305269,1780044638000,-2500000.0,0.00012307,2]
[423305281,1780044638000,-500.0,0.00012647,2]
[423305271,1780044638000,-151.67,0.00012373,2]
[423305273,1780044638000,-32621.06306035,0.00012397,2]
[423305272,1780044638000,-166.87,0.00012373,2]
[423305275,1780044638000,-183.98319049,0.00012528,2]
[423305276,1780044638000,-1925.12979253,0.00012559,2]
[423305277,1780044638000,-167.19015429,0.00012628,2]
[423305279,1780044638000,-9711.81931732,0.00012635,2]
[423305274,1780044638000,-191.92809137,0.00012458,2]
[423305300,1780044638000,-536.37325268,0.00012647,2]
[423305290,1780044638000,-536.37325268,0.00012647,2]
[423305301,1780044638000,-536.37325268,0.00012647,2]
[423305321,1780044638000,-536.37325268,0.00012647,2]
[423305323,1780044638000,-536.37325268,0.00012647,2]
[423305324,1780044638000,-536.37325268,0.00012647,2]
[423305325,1780044638000,-536.37325268,0.00012647,2]
[423305322,1780044638000,-536.37325268,0.00012647,2]
[423305326,1780044638000,-536.37325268,0.00012647,2]
[423305329,1780044638000,-527.64159508,0.00012647,2]
[423305327,1780044638000,-536.37325268,0.00012647,2]
[423305330,1780044638000,-527.64159508,0.00012647,2]
[423305332,1780044638000,-527.64159508,0.00012647,2]
[423305328,1780044638000,-536.37325268,0.00012647,2]
[423305334,1780044638000,-527.64159508,0.00012647,2]
[423305335,1780044638000,-527.64159508,0.00012647,2]
[423305333,1780044638000,-527.64159508,0.00012647,2]
[423305302,1780044638000,-536.37325268,0.00012647,2]
[423305319,1780044638000,-536.37325268,0.00012647,2]
[423305317,1780044638000,-536.37325268,0.00012647,2]
[423305331,1780044638000,-527.64159508,0.00012647,2]
[423305318,1780044638000,-536.37325268,0.00012647,2]
[423305320,1780044638000,-536.37325268,0.00012647,2]
[423305306,1780044638000,-536.37325268,0.00012647,2]
[423305308,1780044638000,-536.37325268,0.00012647,2]
[423305303,1780044638000,-536.37325268,0.00012647,2]
[423305307,1780044638000,-536.37325268,0.00012647,2]
[423305304,1780044638000,-469.86974156,0.00012647,2]
[423305309,1780044638000,-536.37325268,0.00012647,2]
[423305305,1780044638000,-536.37325268,0.00012647,2]
[423305313,1780044638000,-536.37325268,0.00012647,2]
[423305312,1780044638000,-536.37325268,0.00012647,2]
[423305310,1780044638000,-536.37325268,0.00012647,2]
[423305314,1780044638000,-536.37325268,0.00012647,2]
[423305315,1780044638000,-536.37325268,0.00012647,2]
[423305311,1780044638000,-536.37325268,0.00012647,2]
[423305316,1780044638000,-536.37325268,0.00012647,2]
[423305365,1780044639000,-506.53593129,0.00012647,2]
[423305377,1780044639000,-500.0,0.00012657,2]
[423305374,1780044639000,-169.465949,0.00012656,2]
[423305373,1780044639000,-235.01,0.00012654,2]
[423305372,1780044639000,-1200.0,0.00012653,2]
[423305370,1780044639000,-150.0,0.00012653,2]
[423305368,1780044639000,-506.53593129,0.00012647,2]
[423305367,1780044639000,-506.53593129,0.00012647,2]
[423305369,1780044639000,-506.53593129,0.00012647,2]
[423305364,1780044639000,-506.53593129,0.00012647,2]
[423305371,1780044639000,-1200.0,0.00012653,2]
[423305375,1780044639000,-361.36226827,0.00012657,2]
[423305385,1780044639000,-6300.0,0.000128,4]
[423305378,1780044639000,-500.0,0.00012657,2]
[423305379,1780044639000,-434.16191959,0.00012657,2]
[423305381,1780044639000,-709.4585121,0.00012749,2]
[423305380,1780044639000,-413.53568237,0.00012657,2]
[423305382,1780044639000,-514.45844931,0.00012755,2]
[423305383,1780044639000,-284.15399531,0.00012755,2]
[423305386,1780044639000,-302.0,0.00012845,2]
[423305387,1780044639000,-151.67,0.00012849,2]
[423305384,1780044639000,-1213.83,0.00012757,2]
[423305388,1780044639000,-166.87,0.00012849,2]
[423305366,1780044639000,-506.53593129,0.00012647,2]
[423305389,1780044639000,-9500.0,0.000129,4]
[423305376,1780044639000,-500.0,0.00012657,2]
[423305362,1780044639000,-506.53593129,0.00012647,2]
[423305347,1780044639000,-527.64159508,0.00012647,2]
[423305360,1780044639000,-506.53593129,0.00012647,2]
[423305390,1780044639000,-11500.77660661,0.00012923,2]
[423305337,1780044639000,-527.64159508,0.00012647,2]
[423305336,1780044639000,-527.64159508,0.00012647,2]
[423305338,1780044639000,-527.64159508,0.00012647,2]
[423305340,1780044639000,-527.64159508,0.00012647,2]
[423305342,1780044639000,-527.64159508,0.00012647,2]
[423305341,1780044639000,-527.64159508,0.00012647,2]
[423305343,1780044639000,-527.64159508,0.00012647,2]
[423305339,1780044639000,-527.64159508,0.00012647,2]
[423305344,1780044639000,-527.64159508,0.00012647,2]
[423305346,1780044639000,-527.64159508,0.00012647,2]
[423305345,1780044639000,-527.64159508,0.00012647,2]
[423305349,1780044639000,-527.64159508,0.00012647,2]
[423305348,1780044639000,-527.64159508,0.00012647,2]
[423305350,1780044639000,-527.64159508,0.00012647,2]
[423305352,1780044639000,-527.64159508,0.00012647,2]
[423305351,1780044639000,-527.64159508,0.00012647,2]
[423305354,1780044639000,-527.64159508,0.00012647,2]
[423305353,1780044639000,-527.64159508,0.00012647,2]
[423305355,1780044639000,-527.64159508,0.00012647,2]
[423305358,1780044639000,-506.53593129,0.00012647,2]
[423305359,1780044639000,-506.53593129,0.00012647,2]
[423305356,1780044639000,-506.53593129,0.00012647,2]
[423305357,1780044639000,-506.53593129,0.00012647,2]
[423305363,1780044639000,-506.53593129,0.00012647,2]
[423305361,1780044639000,-506.53593129,0.00012647,2]
[423305391,1780044639000,-9711.81931732,0.00013013,2]
[423305424,1780044639000,-542.14498926,0.00013698,2]
[423305393,1780044639000,-5754.38995153,0.00013174,2]
[423305418,1780044639000,-293.1532518,0.0001363,2]
[423305425,1780044639000,-500.0,0.00013698,2]
[423305426,1780044639000,-500.0,0.00013698,2]
[423305427,1780044639000,-500.0,0.00013698,2]
[423305428,1780044639000,-500.0,0.00013698,2]
[423305429,1780044639000,-500.0,0.00013698,2]
[423305431,1780044639000,-604.08,0.00013698,2]
[423305432,1780044639000,-564.99,0.00013698,2]
[423305430,1780044639000,-500.0,0.00013698,2]
[423305433,1780044639000,-406.0981632,0.00013698,2]
[423305434,1780044639000,-500.0,0.00013699,2]
[423305435,1780044639000,-500.0,0.00013699,2]
[423305437,1780044639000,-500.0,0.00013699,2]
[423305436,1780044639000,-500.0,0.00013699,2]
[423305438,1780044639000,-500.0,0.00013699,2]
[423305439,1780044639000,-500.0,0.00013699,2]
[423305440,1780044639000,-500.0,0.00013699,2]
[423305392,1780044639000,-451.0,0.00013174,2]
[423305441,1780044639000,-500.0,0.00013699,2]
[423305445,1780044639000,-500.0,0.00013699,2]
[423305446,1780044639000,-500.0,0.00013699,2]
[423305443,1780044639000,-500.0,0.00013699,2]
[423305444,1780044639000,-500.0,0.00013699,2]
[423305447,1780044639000,-500.0,0.00013699,2]
[423305448,1780044639000,-500.0,0.00013699,2]
[423305421,1780044639000,-500.0,0.00013698,2]
[423305422,1780044639000,-500.0,0.00013698,2]
[423305442,1780044639000,-500.0,0.00013699,2]
[423305420,1780044639000,-471.20247158,0.0001363,2]
[423305423,1780044639000,-500.0,0.00013698,2]
[423305396,1780044639000,-1316.0,0.00013276,2]
[423305395,1780044639000,-11500.77660661,0.00013205,2]
[423305397,1780044639000,-859.0,0.00013279,2]
[423305398,1780044639000,-1400.0,0.00013303,2]
[423305394,1780044639000,-189.0,0.00013201,2]
[423305400,1780044639000,-166.87,0.00013325,2]
[423305403,1780044639000,-284.37093572,0.00013478,7]
[423305402,1780044639000,-9711.81931732,0.0001339,2]
[423305404,1780044639000,-150.76604345,0.00013488,2]
[423305401,1780044639000,-453.0,0.00013329,2]
[423305408,1780044639000,-150.0,0.00013488,2]
[423305405,1780044639000,-151.84740647,0.00013488,2]
[423305399,1780044639000,-151.67,0.00013325,2]
[423305411,1780044639000,-150.0,0.00013488,2]
[423305407,1780044639000,-152.47160632,0.00013488,2]
[423305417,1780044639000,-500.0,0.0001363,2]
[423305419,1780044639000,-500.0,0.0001363,2]
[423305412,1780044639000,-11500.77660661,0.00013488,2]
[423305415,1780044639000,-500.0,0.0001363,2]
[423305416,1780044639000,-150.0,0.0001363,2]
[423305413,1780044639000,-150.0,0.0001363,2]
[423305406,1780044639000,-150.0,0.00013488,2]
[423305409,1780044639000,-152.13755173,0.00013488,2]
[423305410,1780044639000,-150.0,0.00013488,2]
[423305414,1780044639000,-150.0,0.0001363,2]
[423305476,1780044640000,-182.17,0.00014467,2]
[423305468,1780044640000,-156.587,0.00014249,2]
[423305478,1780044640000,-1124.0,0.00014557,2]
[423305470,1780044640000,-151.67,0.00014277,2]
[423305475,1780044640000,-350.0,0.00014444,2]
[423305471,1780044640000,-166.87,0.00014277,2]
[423305479,1780044640000,-12700.0,0.000146,5]
[423305465,1780044640000,-9711.81931732,0.00014145,2]
[423305489,1780044640000,-1241.40376008,0.00014765,2]
[423305473,1780044640000,-11500.77660661,0.00014335,2]
[423305481,1780044640000,-152.0,0.00014683,7]
[423305482,1780044640000,-150.0,0.00014687,2]
[423305484,1780044640000,-15800.0,0.000147,5]
[423305483,1780044640000,-6069.92313682,0.000147,2]
[423305485,1780044640000,-151.67,0.00014752,2]
[423305488,1780044640000,-488.57832119,0.00014756,2]
[423305469,1780044640000,-199.37384035,0.00014249,2]
[423305474,1780044640000,-150.0,0.00014387,2]
[423305477,1780044640000,-9711.81931732,0.00014523,2]
[423305454,1780044640000,-255.0,0.00013754,2]
[423305480,1780044640000,-11500.77660661,0.00014618,2]
[423305486,1780044640000,-166.87,0.00014752,2]
[423305450,1780044640000,-500.0,0.00013699,2]
[423305449,1780044640000,-249.1011138,0.00013699,2]